[Event "*** SCC Grand Prix: Titled Tuesday Blitz"]
[Site "Chess.com"]
[Date "2020.08.11"]
[Round "6"]
[White "pastouche06"]
[Black "adotand"]
[Result "0-1"]
[WhiteElo "2502"]
[BlackElo "2777"]
[TimeControl "180+1"]
[EndTime "11:07:13 PDT"]
[Termination "adotand won on time"]

1. d4 {[%clk 0:03:00.6]} 1... Nf6 {[%clk 0:02:59.7]} 2. c4 {[%clk 0:03:00.4]}
2... g6 {[%clk 0:03:00.1]} 3. f3 {[%clk 0:03:00.6]} 3... Bg7 {[%clk 0:02:59.7]}
4. e4 {[%clk 0:03:00.3]} 4... d6 {[%clk 0:03:00]} 5. Ne2 {[%clk 0:03:00.5]} 5...
O-O {[%clk 0:02:57.8]} 6. Be3 {[%clk 0:03:00.3]} 6... c5 {[%clk 0:02:55.7]} 7.
Qd2 {[%clk 0:03:00]} 7... Nc6 {[%clk 0:02:55.1]} 8. d5 {[%clk 0:03:00.2]} 8...
Ne5 {[%clk 0:02:55.5]} 9. Nec3 {[%clk 0:03:00.1]} 9... e6 {[%clk 0:02:54.6]} 10.
Be2 {[%clk 0:02:59.7]} 10... exd5 {[%clk 0:02:53.9]} 11. cxd5 {[%clk 0:03:00.6]}
11... a6 {[%clk 0:02:53.9]} 12. a4 {[%clk 0:03:00.3]} 12... h5 {[%clk 0:02:54]}
13. O-O {[%clk 0:02:58.2]} 13... Nh7 {[%clk 0:02:54.1]} 14. Na3 {[%clk
0:02:57.4]} 14... Bd7 {[%clk 0:02:38.6]} 15. h3 {[%clk 0:02:36.8]} 15... g5
{[%clk 0:02:11.3]} 16. f4 {[%clk 0:02:16.5]} 16... gxf4 {[%clk 0:02:10.9]} 17.
Bxf4 {[%clk 0:02:17.4]} 17... h4 {[%clk 0:02:00.6]} 18. Nc4 {[%clk 0:02:13]}
18... Nxc4 {[%clk 0:01:55.8]} 19. Bxc4 {[%clk 0:02:13.9]} 19... Qf6 {[%clk
0:01:56.2]} 20. Kh1 {[%clk 0:01:50.1]} 20... Rad8 {[%clk 0:01:44.7]} 21. Rae1
{[%clk 0:01:19.5]} 21... Rfe8 {[%clk 0:01:25.4]} 22. e5 {[%clk 0:01:03.5]} 22...
dxe5 {[%clk 0:01:21.4]} 23. Ne4 {[%clk 0:01:03.6]} 23... Qg6 {[%clk 0:01:18.5]}
24. Bh2 {[%clk 0:01:02.3]} 24... b6 {[%clk 0:01:07.1]} 25. Bxa6 {[%clk
0:00:56.9]} 25... f5 {[%clk 0:01:06.4]} 26. Nc3 {[%clk 0:00:55.7]} 26... e4
{[%clk 0:01:03.9]} 27. Bc4 {[%clk 0:00:50.7]} 27... Kh8 {[%clk 0:01:03.3]} 28.
Nb5 {[%clk 0:00:44.7]} 28... Nf6 {[%clk 0:00:57.6]} 29. Nc7 {[%clk 0:00:42.4]}
29... Rf8 {[%clk 0:00:53.2]} 30. Qf2 {[%clk 0:00:34.5]} 30... Qh5 {[%clk
0:00:46.2]} 31. Ne6 {[%clk 0:00:29.1]} 31... Bxe6 {[%clk 0:00:44.9]} 32. dxe6
{[%clk 0:00:30]} 32... Rd4 {[%clk 0:00:42.5]} 33. Bb5 {[%clk 0:00:26.6]} 33...
Nd5 {[%clk 0:00:40.9]} 34. Bd6 {[%clk 0:00:20.2]} 34... e3 {[%clk 0:00:32.9]}
35. Qc2 {[%clk 0:00:12.1]} 35... Nb4 {[%clk 0:00:26.5]} 36. Qe2 {[%clk
0:00:09.4]} 36... Qxe2 {[%clk 0:00:25.7]} 37. Rxe2 {[%clk 0:00:10.3]} 37... Rxd6
{[%clk 0:00:26]} 38. e7 {[%clk 0:00:10.7]} 38... Rg8 {[%clk 0:00:26.5]} 39. e8=Q
{[%clk 0:00:10.4]} 39... Rxe8 {[%clk 0:00:27]} 40. Bxe8 {[%clk 0:00:11.2]} 40...
Re6 {[%clk 0:00:24.6]} 41. Rxf5 {[%clk 0:00:07.7]} 41... Rxe8 {[%clk 0:00:23.9]}
0-1

[Event "*** SCC Grand Prix: Titled Tuesday Blitz"]
[Site "Chess.com"]
[Date "2020.08.11"]
[Round "6"]
[White "lelajavakhishvili"]
[Black "Goryachkina"]
[Result "1-0"]
[WhiteElo "2425"]
[BlackElo "2558"]
[TimeControl "180+1"]
[EndTime "11:07:13 PDT"]
[Termination "lelajavakhishvili won on time"]

1. Nf3 {[%clk 0:03:00.9]} 1... d5 {[%clk 0:02:59.7]} 2. e3 {[%clk 0:03:00]} 2...
Nf6 {[%clk 0:02:58]} 3. b3 {[%clk 0:03:00.1]} 3... c6 {[%clk 0:02:54.7]} 4. Bb2
{[%clk 0:03:00.1]} 4... Bf5 {[%clk 0:02:54.3]} 5. Be2 {[%clk 0:02:59.1]} 5... e6
{[%clk 0:02:54.4]} 6. Nh4 {[%clk 0:02:56.9]} 6... Bg6 {[%clk 0:02:53]} 7. Nxg6
{[%clk 0:02:55.4]} 7... hxg6 {[%clk 0:02:52.8]} 8. h3 {[%clk 0:02:53.3]} 8...
Bd6 {[%clk 0:02:51.9]} 9. O-O {[%clk 0:02:50.7]} 9... Nbd7 {[%clk 0:02:51.6]}
10. c4 {[%clk 0:02:49.7]} 10... Qe7 {[%clk 0:02:34.7]} 11. d4 {[%clk 0:02:43.8]}
11... Ne4 {[%clk 0:02:24.3]} 12. Nd2 {[%clk 0:02:37.6]} 12... Nxd2 {[%clk
0:02:17.8]} 13. Qxd2 {[%clk 0:02:37.4]} 13... Nf6 {[%clk 0:02:18.1]} 14. a3
{[%clk 0:02:33.7]} 14... g5 {[%clk 0:02:16.5]} 15. Qd1 {[%clk 0:02:18.3]} 15...
Ne4 {[%clk 0:02:12.9]} 16. Bd3 {[%clk 0:02:15.7]} 16... f5 {[%clk 0:01:55.8]}
17. Bxe4 {[%clk 0:02:07.6]} 17... dxe4 {[%clk 0:01:42.5]} 18. b4 {[%clk
0:01:48.6]} 18... g4 {[%clk 0:01:34.2]} 19. d5 {[%clk 0:01:41.2]} 19... gxh3
{[%clk 0:01:14.8]} 20. g3 {[%clk 0:01:40.9]} 20... cxd5 {[%clk 0:00:58.2]} 21.
cxd5 {[%clk 0:01:39.8]} 21... e5 {[%clk 0:00:58.4]} 22. Rc1 {[%clk 0:01:21.4]}
22... Kf7 {[%clk 0:00:56.1]} 23. Kh2 {[%clk 0:01:14.3]} 23... g6 {[%clk
0:00:34.8]} 24. f4 {[%clk 0:01:00.7]} 24... exf3 {[%clk 0:00:33.5]} 25. Qxf3
{[%clk 0:00:59.9]} 25... e4 {[%clk 0:00:28]} 26. Qf2 {[%clk 0:00:57.4]} 26...
Rh7 {[%clk 0:00:25.7]} 27. Bd4 {[%clk 0:00:54.7]} 27... Rd8 {[%clk 0:00:18.2]}
28. Bc5 {[%clk 0:00:52.6]} 28... Bxc5 {[%clk 0:00:16.4]} 29. Rxc5 {[%clk
0:00:52.4]} 29... b6 {[%clk 0:00:16.3]} 30. Rc2 {[%clk 0:00:25.9]} 30... Rxd5
{[%clk 0:00:16.2]} 31. Qf4 {[%clk 0:00:26.1]} 31... Rh8 {[%clk 0:00:13.8]} 32.
Rff2 {[%clk 0:00:19.5]} 32... Rd7 {[%clk 0:00:13.6]} 33. g4 {[%clk 0:00:19.1]}
33... Qe6 {[%clk 0:00:11.6]} 34. gxf5 {[%clk 0:00:18.9]} 34... gxf5 {[%clk
0:00:11.8]} 35. Qxf5+ {[%clk 0:00:19]} 35... Qxf5 {[%clk 0:00:12.2]} 36. Rxf5+
{[%clk 0:00:19.9]} 36... Kg6 {[%clk 0:00:10]} 37. Rf4 {[%clk 0:00:19.8]} 37...
Re7 {[%clk 0:00:06.8]} 38. Rc1 {[%clk 0:00:19.7]} 38... Rd8 {[%clk 0:00:05.7]}
39. Rg1+ {[%clk 0:00:19.8]} 39... Kh5 {[%clk 0:00:03.9]} 40. Kxh3 {[%clk
0:00:20.1]} 1-0

[Event "*** SCC Grand Prix: Titled Tuesday Blitz"]
[Site "Chess.com"]
[Date "2020.08.11"]
[Round "6"]
[White "Gareth-Bale11"]
[Black "penguingm1"]
[Result "1-0"]
[WhiteElo "2820"]
[BlackElo "3000"]
[TimeControl "180+1"]
[EndTime "11:07:15 PDT"]
[Termination "Gareth-Bale11 won by checkmate"]

1. d4 {[%clk 0:02:59.9]} 1... d5 {[%clk 0:03:00.2]} 2. Nf3 {[%clk 0:02:58.8]}
2... Nf6 {[%clk 0:03:00.4]} 3. c4 {[%clk 0:02:58.2]} 3... e6 {[%clk 0:03:00.6]}
4. Nc3 {[%clk 0:02:57.5]} 4... Be7 {[%clk 0:02:58.9]} 5. Bg5 {[%clk 0:02:57.2]}
5... h6 {[%clk 0:02:59]} 6. Bxf6 {[%clk 0:02:57.4]} 6... Bxf6 {[%clk 0:02:59.9]}
7. e3 {[%clk 0:02:58.3]} 7... O-O {[%clk 0:02:57.1]} 8. Rc1 {[%clk 0:02:58.1]}
8... b6 {[%clk 0:02:35.2]} 9. cxd5 {[%clk 0:02:40.4]} 9... exd5 {[%clk
0:02:36.1]} 10. Be2 {[%clk 0:02:35.6]} 10... Be6 {[%clk 0:02:26.9]} 11. O-O
{[%clk 0:02:34.4]} 11... c5 {[%clk 0:02:18.8]} 12. dxc5 {[%clk 0:02:31.5]} 12...
bxc5 {[%clk 0:02:19.7]} 13. Na4 {[%clk 0:02:29.1]} 13... c4 {[%clk 0:02:02.6]}
14. b3 {[%clk 0:02:25.5]} 14... cxb3 {[%clk 0:01:55.9]} 15. axb3 {[%clk
0:02:24.1]} 15... Qd6 {[%clk 0:01:49.9]} 16. Nd4 {[%clk 0:02:20.8]} 16... Nd7
{[%clk 0:01:49.9]} 17. Rc6 {[%clk 0:02:18.7]} 17... Qe7 {[%clk 0:01:46.5]} 18.
Nxe6 {[%clk 0:02:17.9]} 18... fxe6 {[%clk 0:01:46.4]} 19. Bg4 {[%clk 0:02:07.8]}
19... Ne5 {[%clk 0:01:25.3]} 20. Bxe6+ {[%clk 0:02:00.7]} 20... Kh8 {[%clk
0:01:25]} 21. Ra6 {[%clk 0:02:00.4]} 21... Rad8 {[%clk 0:01:12.5]} 22. Bxd5
{[%clk 0:01:48.9]} 22... Rd7 {[%clk 0:01:10.3]} 23. e4 {[%clk 0:01:46.4]} 23...
Rfd8 {[%clk 0:01:06.9]} 24. Qe2 {[%clk 0:01:42.7]} 24... Ng6 {[%clk 0:01:00.8]}
25. Qg4 {[%clk 0:01:41]} 25... Ne5 {[%clk 0:00:59.3]} 26. Qg3 {[%clk 0:01:25.1]}
26... Bh4 {[%clk 0:00:41.6]} 27. Qh3 {[%clk 0:01:23.8]} 27... Bf6 {[%clk
0:00:37.6]} 28. Re6 {[%clk 0:01:04.5]} 28... Qf8 {[%clk 0:00:29.7]} 29. Nc3
{[%clk 0:01:02.9]} 29... Ng6 {[%clk 0:00:27.2]} 30. Ne2 {[%clk 0:01:02.6]} 30...
Re7 {[%clk 0:00:22.6]} 31. Rxe7 {[%clk 0:00:51.9]} 31... Qxe7 {[%clk 0:00:23.5]}
32. Qf5 {[%clk 0:00:47.6]} 32... Nf8 {[%clk 0:00:14.1]} 33. Nf4 {[%clk
0:00:47.5]} 33... Be5 {[%clk 0:00:14.5]} 34. Nd3 {[%clk 0:00:46.2]} 34... Bd4
{[%clk 0:00:14.4]} 35. Rc1 {[%clk 0:00:45.3]} 35... Bb6 {[%clk 0:00:13.8]} 36.
Rc6 {[%clk 0:00:42.5]} 36... Rd6 {[%clk 0:00:10.4]} 37. Rxd6 {[%clk 0:00:40.1]}
37... Qxd6 {[%clk 0:00:11.3]} 38. Ne5 {[%clk 0:00:37]} 38... Qc5 {[%clk
0:00:02.9]} 39. Nf7+ {[%clk 0:00:36]} 39... Kg8 {[%clk 0:00:03.5]} 40. Nxh6+
{[%clk 0:00:29.9]} 40... Kh8 {[%clk 0:00:04.1]} 41. Nf7+ {[%clk 0:00:29.9]}
41... Kg8 {[%clk 0:00:04.8]} 42. Ne5+ {[%clk 0:00:27.6]} 42... Kh8 {[%clk
0:00:02.3]} 43. Qh5+ {[%clk 0:00:26.2]} 43... Nh7 {[%clk 0:00:02.6]} 44. Ng6#
{[%clk 0:00:25.7]} 1-0

[Event "*** SCC Grand Prix: Titled Tuesday Blitz"]
[Site "Chess.com"]
[Date "2020.08.11"]
[Round "6"]
[White "belisarius64"]
[Black "GoldenShare"]
[Result "1-0"]
[WhiteElo "2713"]
[BlackElo "2496"]
[TimeControl "180+1"]
[EndTime "11:07:15 PDT"]
[Termination "belisarius64 won by resignation"]

1. e4 {[%clk 0:03:00.9]} 1... c5 {[%clk 0:03:00.4]} 2. Nf3 {[%clk 0:02:58.9]}
2... d6 {[%clk 0:03:00.7]} 3. d4 {[%clk 0:02:58.5]} 3... cxd4 {[%clk 0:03:01.6]}
4. Nxd4 {[%clk 0:02:59]} 4... Nf6 {[%clk 0:03:02.1]} 5. Nc3 {[%clk 0:02:59.2]}
5... Nc6 {[%clk 0:03:02.7]} 6. Bc4 {[%clk 0:02:58.2]} 6... Qb6 {[%clk 0:03:02]}
7. Nxc6 {[%clk 0:02:54.8]} 7... bxc6 {[%clk 0:03:01.8]} 8. O-O {[%clk
0:02:55.2]} 8... e6 {[%clk 0:02:53.6]} 9. Qe1 {[%clk 0:02:45]} 9... Be7 {[%clk
0:02:51.7]} 10. e5 {[%clk 0:02:44.2]} 10... dxe5 {[%clk 0:02:46.8]} 11. Qxe5
{[%clk 0:02:45.1]} 11... O-O {[%clk 0:02:42.3]} 12. b3 {[%clk 0:02:39.6]} 12...
Qc5 {[%clk 0:02:40.2]} 13. Qg3 {[%clk 0:02:23.6]} 13... Bb7 {[%clk 0:02:02.3]}
14. Bb2 {[%clk 0:02:22.6]} 14... Qd6 {[%clk 0:01:54.8]} 15. Qf3 {[%clk
0:02:13.6]} 15... Qc7 {[%clk 0:01:48.5]} 16. Rad1 {[%clk 0:01:51.4]} 16... c5
{[%clk 0:01:47.4]} 17. Qh3 {[%clk 0:01:51.7]} 17... Rad8 {[%clk 0:01:34.6]} 18.
Nb5 {[%clk 0:01:38.1]} 18... Qf4 {[%clk 0:01:24.7]} 19. Bc1 {[%clk 0:01:27.8]}
19... Qg4 {[%clk 0:01:02.9]} 20. Qxg4 {[%clk 0:01:26]} 20... Nxg4 {[%clk
0:01:03.8]} 21. Bf4 {[%clk 0:01:26.3]} 21... a6 {[%clk 0:00:38.7]} 22. Nd6
{[%clk 0:01:20.9]} 22... Bd5 {[%clk 0:00:35.9]} 23. Bxd5 {[%clk 0:01:11.6]}
23... Bxd6 {[%clk 0:00:36.2]} 24. Bxd6 {[%clk 0:01:08.6]} 24... Rxd6 {[%clk
0:00:37.1]} 25. Bc4 {[%clk 0:01:06]} 25... Rfd8 {[%clk 0:00:37.5]} 26. Rxd6
{[%clk 0:01:03.4]} 26... Rxd6 {[%clk 0:00:38.4]} 27. Re1 {[%clk 0:01:03.4]}
27... g6 {[%clk 0:00:28.4]} 28. h3 {[%clk 0:01:01.2]} 28... Nf6 {[%clk
0:00:28.5]} 29. Re5 {[%clk 0:00:58.8]} 29... Nd7 {[%clk 0:00:28.5]} 30. Re2
{[%clk 0:00:58.6]} 30... Kg7 {[%clk 0:00:29]} 31. Bd3 {[%clk 0:00:58.3]} 31...
Kf6 {[%clk 0:00:26.6]} 32. f4 {[%clk 0:00:54.8]} 32... h6 {[%clk 0:00:26]} 33.
Kf2 {[%clk 0:00:54.8]} 33... g5 {[%clk 0:00:25.8]} 34. Re4 {[%clk 0:00:53.5]}
34... Rd4 {[%clk 0:00:18.2]} 35. fxg5+ {[%clk 0:00:51.6]} 35... hxg5 {[%clk
0:00:17.8]} 36. Rxd4 {[%clk 0:00:52.2]} 36... cxd4 {[%clk 0:00:18.7]} 37. Bxa6
{[%clk 0:00:53]} 37... Nc5 {[%clk 0:00:17.9]} 38. Bd3 {[%clk 0:00:47.5]} 38...
e5 {[%clk 0:00:18.3]} 39. b4 {[%clk 0:00:46.5]} 39... Na4 {[%clk 0:00:17.8]} 40.
Bb5 {[%clk 0:00:43.9]} 40... Nc3 {[%clk 0:00:15.6]} 41. a4 {[%clk 0:00:44.5]}
41... e4 {[%clk 0:00:09.3]} 42. Bc6 {[%clk 0:00:43.7]} 42... Ke5 {[%clk
0:00:08.2]} 43. a5 {[%clk 0:00:40.4]} 43... d3 {[%clk 0:00:04.2]} 44. cxd3
{[%clk 0:00:39.9]} 44... exd3 {[%clk 0:00:05.1]} 45. Ke3 {[%clk 0:00:39]} 45...
Ne2 {[%clk 0:00:02.1]} 46. Kxd3 {[%clk 0:00:38.2]} 46... Nf4+ {[%clk 0:00:02.7]}
47. Kc4 {[%clk 0:00:38.4]} 47... Kd6 {[%clk 0:00:03.6]} 48. b5 {[%clk
0:00:38.7]} 48... Ne6 {[%clk 0:00:03.2]} 49. a6 {[%clk 0:00:38.6]} 49... Nc7
{[%clk 0:00:03.1]} 50. a7 {[%clk 0:00:38.9]} 1-0

[Event "*** SCC Grand Prix: Titled Tuesday Blitz"]
[Site "Chess.com"]
[Date "2020.08.11"]
[Round "6"]
[White "chessfrendz"]
[Black "Angel_Hranitel_37"]
[Result "0-1"]
[WhiteElo "2263"]
[BlackElo "2447"]
[TimeControl "180+1"]
[EndTime "11:07:15 PDT"]
[Termination "Angel_Hranitel_37 won by resignation"]

1. d4 {[%clk 0:02:30.8]} 1... Nf6 {[%clk 0:02:57.6]} 2. c4 {[%clk 0:02:31]} 2...
g6 {[%clk 0:02:57.5]} 3. Nc3 {[%clk 0:02:30.9]} 3... Bg7 {[%clk 0:02:58.1]} 4.
e4 {[%clk 0:02:31]} 4... d6 {[%clk 0:02:58.8]} 5. Nf3 {[%clk 0:02:31.3]} 5...
O-O {[%clk 0:02:59.5]} 6. Be2 {[%clk 0:02:31.8]} 6... e5 {[%clk 0:02:59.7]} 7.
O-O {[%clk 0:02:32.3]} 7... Nc6 {[%clk 0:02:59.9]} 8. d5 {[%clk 0:02:32.8]} 8...
Ne7 {[%clk 0:02:59.9]} 9. Ne1 {[%clk 0:02:33.1]} 9... Nd7 {[%clk 0:02:58.7]} 10.
Be3 {[%clk 0:02:33.6]} 10... f5 {[%clk 0:02:59]} 11. f3 {[%clk 0:02:34.3]} 11...
f4 {[%clk 0:02:59.1]} 12. Bf2 {[%clk 0:02:35]} 12... g5 {[%clk 0:02:58.2]} 13.
a4 {[%clk 0:02:35.6]} 13... a5 {[%clk 0:02:50.9]} 14. Nb5 {[%clk 0:02:30.3]}
14... b6 {[%clk 0:02:49.3]} 15. Nd3 {[%clk 0:02:25.3]} 15... Nf6 {[%clk
0:02:43.6]} 16. b4 {[%clk 0:02:24.1]} 16... axb4 {[%clk 0:02:43.7]} 17. Nxb4
{[%clk 0:02:23.7]} 17... g4 {[%clk 0:02:44.4]} 18. Bh4 {[%clk 0:02:21.4]} 18...
g3 {[%clk 0:02:32.9]} 19. hxg3 {[%clk 0:02:14.2]} 19... fxg3 {[%clk 0:02:33.8]}
20. f4 {[%clk 0:02:14]} 20... exf4 {[%clk 0:02:26.2]} 21. Ra3 {[%clk 0:02:00.3]}
21... Ng6 {[%clk 0:02:18.4]} 22. Nc6 {[%clk 0:01:47.8]} 22... Qd7 {[%clk
0:02:18.4]} 23. Bxf6 {[%clk 0:01:37.9]} 23... Bxf6 {[%clk 0:02:19.3]} 24. Nbd4
{[%clk 0:01:25]} 24... Bxd4+ {[%clk 0:02:15.1]} 25. Qxd4 {[%clk 0:01:21.1]}
25... Qg7 {[%clk 0:02:13.8]} 26. Qxg7+ {[%clk 0:01:12.6]} 26... Kxg7 {[%clk
0:02:14.7]} 27. Bh5 {[%clk 0:01:12.2]} 27... Bd7 {[%clk 0:02:11.3]} 28. Bxg6
{[%clk 0:01:11.2]} 28... hxg6 {[%clk 0:02:07.4]} 29. Nd4 {[%clk 0:01:06.1]}
29... g5 {[%clk 0:02:02.2]} 30. Rc1 {[%clk 0:00:55.7]} 30... Kf6 {[%clk
0:02:01.7]} 31. Nb5 {[%clk 0:00:49.9]} 31... Bxb5 {[%clk 0:01:44.5]} 32. cxb5
{[%clk 0:00:47.7]} 32... Rf7 {[%clk 0:01:44.8]} 33. Kf1 {[%clk 0:00:43.7]} 33...
Ke5 {[%clk 0:01:40.2]} 34. Rc4 {[%clk 0:00:42.8]} 34... Rh8 {[%clk 0:01:37.8]}
35. Ke2 {[%clk 0:00:43.7]} 35... g4 {[%clk 0:01:34.7]} 36. Rac3 {[%clk
0:00:38.7]} 36... Rh2 {[%clk 0:01:34.5]} 37. Rxc7 {[%clk 0:00:37.7]} 37... Rxg2+
{[%clk 0:01:32]} 38. Kd3 {[%clk 0:00:37.5]} 38... Rxc7 {[%clk 0:01:30.4]} 39.
Rxc7 {[%clk 0:00:36.4]} 39... Ra2 {[%clk 0:01:10]} 40. Re7+ {[%clk 0:00:35.4]}
40... Kf6 {[%clk 0:01:09.9]} 41. Re6+ {[%clk 0:00:34.5]} 41... Kf7 {[%clk
0:01:10.5]} 42. Rxd6 {[%clk 0:00:34.3]} 42... g2 {[%clk 0:01:11]} 43. e5 {[%clk
0:00:28.1]} 43... g1=Q {[%clk 0:01:09]} 44. Ke4 {[%clk 0:00:26.3]} 44... Qb1+
{[%clk 0:01:01.8]} 45. Kxf4 {[%clk 0:00:25.8]} 45... Rxa4+ {[%clk 0:00:59.3]}
46. Kg5 {[%clk 0:00:23.4]} 46... Qc1+ {[%clk 0:00:59.7]} 47. Kh5 {[%clk
0:00:20.1]} 47... Qh1+ {[%clk 0:00:58.7]} 48. Kg5 {[%clk 0:00:20.2]} 48... Qe4
{[%clk 0:00:55.9]} 49. Rd7+ {[%clk 0:00:19.2]} 49... Ke8 {[%clk 0:00:56.4]} 50.
e6 {[%clk 0:00:17.5]} 50... Rd4 {[%clk 0:00:51.3]} 0-1

[Event "*** SCC Grand Prix: Titled Tuesday Blitz"]
[Site "Chess.com"]
[Date "2020.08.11"]
[Round "6"]
[White "Sergey85Rodchenkov"]
[Black "chargemax23"]
[Result "0-1"]
[WhiteElo "2475"]
[BlackElo "2649"]
[TimeControl "180+1"]
[EndTime "11:07:16 PDT"]
[Termination "chargemax23 won by resignation"]

1. e4 {[%clk 0:03:00.9]} 1... g6 {[%clk 0:02:59.5]} 2. d4 {[%clk 0:03:00.6]}
2... Bg7 {[%clk 0:02:59.1]} 3. Nf3 {[%clk 0:03:00.7]} 3... c6 {[%clk 0:02:57.1]}
4. c3 {[%clk 0:02:49.6]} 4... d6 {[%clk 0:02:50.7]} 5. Bd3 {[%clk 0:02:48.7]}
5... e5 {[%clk 0:02:48.9]} 6. O-O {[%clk 0:02:48]} 6... Nd7 {[%clk 0:02:48.6]}
7. Re1 {[%clk 0:02:47.7]} 7... Ngf6 {[%clk 0:02:47.8]} 8. Bg5 {[%clk 0:02:46.8]}
8... h6 {[%clk 0:02:47.5]} 9. Bh4 {[%clk 0:02:47]} 9... O-O {[%clk 0:02:47.1]}
10. Nbd2 {[%clk 0:02:46.5]} 10... a5 {[%clk 0:02:45.1]} 11. a4 {[%clk
0:02:44.1]} 11... Qc7 {[%clk 0:02:44]} 12. Qc2 {[%clk 0:02:42.1]} 12... Re8
{[%clk 0:02:42.6]} 13. dxe5 {[%clk 0:02:42]} 13... dxe5 {[%clk 0:02:42.1]} 14.
Nc4 {[%clk 0:02:36.6]} 14... Nc5 {[%clk 0:02:35.2]} 15. Bf1 {[%clk 0:02:36.2]}
15... Nh5 {[%clk 0:01:57.8]} 16. Nfd2 {[%clk 0:02:31.9]} 16... Be6 {[%clk
0:01:48.6]} 17. f3 {[%clk 0:02:31.1]} 17... b5 {[%clk 0:01:37]} 18. axb5 {[%clk
0:02:22.8]} 18... cxb5 {[%clk 0:01:36.9]} 19. Na3 {[%clk 0:02:18.2]} 19... b4
{[%clk 0:01:35.3]} 20. cxb4 {[%clk 0:02:04.5]} 20... axb4 {[%clk 0:01:33.7]} 21.
Nb5 {[%clk 0:02:04.3]} 21... Qc6 {[%clk 0:01:29]} 22. Bf2 {[%clk 0:02:01.7]}
22... Bf8 {[%clk 0:01:23.3]} 23. Rxa8 {[%clk 0:01:48.4]} 23... Rxa8 {[%clk
0:01:21.8]} 24. Rc1 {[%clk 0:01:48.8]} 24... Qd7 {[%clk 0:00:51.7]} 25. Nc4
{[%clk 0:01:28.2]} 25... Qxb5 {[%clk 0:00:42.6]} 26. Nxe5 {[%clk 0:00:59.9]}
26... Qa5 {[%clk 0:00:42]} 27. Nc6 {[%clk 0:00:47.1]} 27... Qb6 {[%clk
0:00:38.6]} 28. Nd4 {[%clk 0:00:46.1]} 28... Rc8 {[%clk 0:00:36.6]} 29. Nxe6
{[%clk 0:00:45.4]} 29... Qxe6 {[%clk 0:00:35.2]} 30. Bc4 {[%clk 0:00:41.7]}
30... Qe5 {[%clk 0:00:30.8]} 31. Qd2 {[%clk 0:00:34.8]} 31... Ne6 {[%clk
0:00:27.4]} 32. g3 {[%clk 0:00:32.5]} 32... Nf6 {[%clk 0:00:26.2]} 33. b3 {[%clk
0:00:28]} 33... g5 {[%clk 0:00:25.8]} 34. Rd1 {[%clk 0:00:26.5]} 34... g4 {[%clk
0:00:25.1]} 35. fxg4 {[%clk 0:00:20]} 35... Nxe4 {[%clk 0:00:24.2]} 36. Qe2
{[%clk 0:00:16.1]} 36... N6g5 {[%clk 0:00:23.8]} 37. Bd4 {[%clk 0:00:12.7]}
37... Bc5 {[%clk 0:00:17]} 38. Bxc5 {[%clk 0:00:12]} 38... Qxc5+ {[%clk
0:00:16.7]} 39. Kg2 {[%clk 0:00:12.6]} 39... Nc3 {[%clk 0:00:16.2]} 40. Qd3
{[%clk 0:00:07.7]} 40... Qc6+ {[%clk 0:00:15.6]} 0-1

[Event "*** SCC Grand Prix: Titled Tuesday Blitz"]
[Site "Chess.com"]
[Date "2020.08.11"]
[Round "6"]
[White "esrosenberg"]
[Black "BursaBBSatranc"]
[Result "0-1"]
[WhiteElo "2188"]
[BlackElo "2522"]
[TimeControl "180+1"]
[EndTime "11:07:19 PDT"]
[Termination "BursaBBSatranc won by resignation"]

1. Nf3 {[%clk 0:03:00.9]} 1... d5 {[%clk 0:03:00]} 2. c4 {[%clk 0:03:00.7]} 2...
c6 {[%clk 0:03:00]} 3. d4 {[%clk 0:02:59.6]} 3... Nf6 {[%clk 0:03:00.1]} 4. Nc3
{[%clk 0:02:59.6]} 4... a6 {[%clk 0:03:00.1]} 5. e3 {[%clk 0:02:58.9]} 5... b5
{[%clk 0:02:59.9]} 6. b3 {[%clk 0:02:59.4]} 6... Bg4 {[%clk 0:02:59.9]} 7. h3
{[%clk 0:02:59.9]} 7... Bxf3 {[%clk 0:02:59.9]} 8. gxf3 {[%clk 0:03:00.8]} 8...
e6 {[%clk 0:02:59.7]} 9. c5 {[%clk 0:02:54.4]} 9... e5 {[%clk 0:02:56.9]} 10.
dxe5 {[%clk 0:02:53.8]} 10... Nfd7 {[%clk 0:02:56.9]} 11. Nxd5 {[%clk 0:02:54]}
11... Nxe5 {[%clk 0:02:44.4]} 12. Bb2 {[%clk 0:02:02]} 12... Nbd7 {[%clk
0:02:16.2]} 13. f4 {[%clk 0:01:45.5]} 13... Ng6 {[%clk 0:01:05]} 14. Nb6 {[%clk
0:01:17.9]} 14... Nxb6 {[%clk 0:00:57.6]} 15. cxb6 {[%clk 0:01:00]} 15... Qxb6
{[%clk 0:00:51.2]} 16. Bg2 {[%clk 0:00:51.2]} 16... Bb4+ {[%clk 0:00:50.8]} 17.
Kf1 {[%clk 0:00:51.4]} 17... O-O {[%clk 0:00:47.5]} 18. h4 {[%clk 0:00:38.4]}
18... Rfd8 {[%clk 0:00:46.4]} 19. Qg4 {[%clk 0:00:35.5]} 19... Rd2 {[%clk
0:00:38.2]} 20. Rb1 {[%clk 0:00:35.3]} 20... Qc5 {[%clk 0:00:30.5]} 21. Be4
{[%clk 0:00:20.7]} 21... Rxb2 {[%clk 0:00:19.1]} 22. Rxb2 {[%clk 0:00:13.8]}
22... Qc1+ {[%clk 0:00:19.1]} 23. Kg2 {[%clk 0:00:13.2]} 23... Qxb2 {[%clk
0:00:19.6]} 24. h5 {[%clk 0:00:11.3]} 24... Nf8 {[%clk 0:00:18.5]} 25. h6 {[%clk
0:00:11.2]} 25... g6 {[%clk 0:00:18.8]} 26. Bxc6 {[%clk 0:00:10.9]} 26... Rd8
{[%clk 0:00:17.1]} 27. f5 {[%clk 0:00:08.6]} 27... Qf6 {[%clk 0:00:16.2]} 28.
Be4 {[%clk 0:00:07.1]} 28... Qe5 {[%clk 0:00:15]} 29. fxg6 {[%clk 0:00:06.1]}
29... fxg6 {[%clk 0:00:14.4]} 30. Bxg6 {[%clk 0:00:06.4]} 30... Nxg6 {[%clk
0:00:14.2]} 31. Qxb4 {[%clk 0:00:06.6]} 31... Qd5+ {[%clk 0:00:13.3]} 32. e4
{[%clk 0:00:05.8]} 32... Qf7 {[%clk 0:00:12.2]} 33. Qe1 {[%clk 0:00:04.3]} 33...
Rf8 {[%clk 0:00:12.2]} 34. Rh3 {[%clk 0:00:03.8]} 34... Nf4+ {[%clk 0:00:12.3]}
35. Kh2 {[%clk 0:00:04]} 35... Nxh3 {[%clk 0:00:13.2]} 36. Kxh3 {[%clk
0:00:04.7]} 36... Qf3+ {[%clk 0:00:13.5]} 37. Kh2 {[%clk 0:00:04.1]} 37... Rf4
{[%clk 0:00:13.6]} 38. Qg1+ {[%clk 0:00:03.8]} 38... Rg4 {[%clk 0:00:12.3]} 39.
Qxg4+ {[%clk 0:00:01.2]} 39... Qxg4 {[%clk 0:00:12.4]} 40. Kh1 {[%clk
0:00:01.4]} 40... Kf7 {[%clk 0:00:12.7]} 41. f4 {[%clk 0:00:01.2]} 41... Qxf4
{[%clk 0:00:12.3]} 42. e5 {[%clk 0:00:02.1]} 42... Qxh6+ {[%clk 0:00:12.4]} 0-1